fUST/lending_fUST_20260103
["ID","MTS","AMOUNT","RATE_DAILY","PERIOD"]
[400331043,1767381034823,-500.0,0.00013699,2]
[400331044,1767381034832,-500.0,0.00013699,2]
[400331045,1767381034841,-500.0,0.00013699,2]
[400331046,1767381034851,-500.0,0.00013699,2]
[400331047,1767381034860,-500.0,0.00013699,2]
[400331048,1767381034870,-500.0,0.00013699,2]
[400331049,1767381034880,-500.0,0.00013699,2]
[400331050,1767381034889,-500.0,0.00013699,2]
[400331051,1767381034898,-500.0,0.00013699,2]
[400331052,1767381034907,-500.0,0.00013699,2]
[400331053,1767381034916,-500.0,0.00013699,2]
[400331054,1767381034925,-500.0,0.00013699,2]
[400331055,1767381034934,-647.0,0.00013762,2]
[400331056,1767381034944,-9364.05,0.00013773,2]
[400331057,1767381034953,-647.0,0.00013803,2]
[400331058,1767381034963,-1000.0,0.00013821,2]
[400331059,1767381034972,-1000.0,0.00013821,2]
[400331060,1767381034983,-1000.0,0.00013821,2]
[400331061,1767381034992,-1000.0,0.00013821,2]
[400331062,1767381035001,-1000.0,0.00013821,2]
[400331063,1767381035010,-1000.0,0.00013821,2]
[400331064,1767381035019,-1000.0,0.00013821,2]
[400331065,1767381035029,-1000.0,0.00013821,2]
[400331066,1767381035039,-861.95620737,0.00013821,2]
[400331067,1767381035048,-1000.0,0.00013821,2]
[400331068,1767381035058,-1000.0,0.00013821,2]
[400331069,1767381035068,-1000.0,0.00013821,2]
[400331070,1767381035077,-1000.0,0.00013821,2]
[400331071,1767381035087,-325.41046697,0.00013821,2]
[400331072,1767381035096,-1000.0,0.00013821,2]
[400331073,1767381035106,-1000.0,0.00013821,2]
[400331074,1767381035115,-1000.0,0.00013821,2]
[400331075,1767381035125,-1000.0,0.00013821,2]
[400331076,1767381035135,-1000.0,0.00013821,2]
[400331077,1767381035144,-823.0,0.00013849,2]
[400331078,1767381035153,-647.0,0.00013889,2]
[400331079,1767381035163,-2117.84175021,0.00013903,3]
[400331080,1767381035171,-203.94765286,0.00013903,3]
[400331081,1767381035181,-27290.52573626,0.00013903,3]
[400331082,1767381035190,-647.0,0.00013971,2]
[400331083,1767381035199,-163.54778265,0.00013973,2]
[400331084,1767381035208,-647.0,0.00013974,2]
[400331085,1767381035218,-233.51889341,0.00013975,2]
[400331086,1767381035227,-640.24385345,0.00013975,2]
[400331087,1767381035236,-4997.5,0.00014,2]
[400331088,1767381035245,-647.0,0.0001401,2]
[400331089,1767381035255,-647.0,0.00014026,2]
[400331090,1767381035264,-647.0,0.00014058,2]
[400331091,1767381035274,-720.0,0.00014068,2]
[400331092,1767381035283,-5000.0,0.00014122,2]
[400331093,1767381035292,-3131.42280894,0.00014122,2]
[400331094,1767381035490,-838.73973918,0.00014122,2]
[400331095,1767381035510,-1029.83745188,0.00014122,2]
[400331096,1767381035520,-5000.0,0.00014122,2]
[400331097,1767381035529,-647.0,0.00014137,2]
[400331098,1767381035618,-647.0,0.00014175,2]
[400331099,1767381035628,-647.0,0.00014195,2]
[400331100,1767381035637,-349.10745258,0.00014221,2]
[400331112,1767381037815,-151.0,0.00013699,2]
[400331113,1767381037825,-148.07995219,0.00013699,2]
[400331114,1767381037837,-2.92004781,0.00013699,2]
[400331115,1767381037847,-151.0,0.00013699,2]
[400331116,1767381037861,-250.89254742,0.00014221,2]
[400331117,1767381037871,-842.93740477,0.00014247,2]
[400331167,1767381039925,-49.9442966,0.00014247,2]
[400331169,1767381039935,-1000.0,0.00014247,2]
[400331171,1767381039944,-1000.0,0.00014247,2]
[400331173,1767381039953,-185.7307998,0.00014247,2]
[400331674,1767381044967,-500.0,0.00011415,2]
[400331676,1767381044977,-1459.44253199,0.00014104,2]
[400331732,1767381045729,-2318.34167376,0.00014104,2]
[400331736,1767381045764,-1222.21579425,0.00014104,2]
[400331738,1767381045773,-814.2692002,0.00014247,2]
[400331740,1767381045782,-1000.0,0.00014247,2]
[400331742,1767381045791,-541.12357041,0.00014247,2]
[400331744,1767381045800,-1000.0,0.00014247,2]
[400331746,1767381045809,-1000.0,0.00014247,2]
[400331748,1767381045819,-156.44137789,0.00014247,2]
[400331750,1767381045828,-1000.0,0.00014247,2]
[400331752,1767381045837,-520.45931442,0.00014247,2]
[400331754,1767381045846,-888.07347701,0.00014247,2]
[400331756,1767381045855,-1000.0,0.00014247,2]
[400331758,1767381045864,-920.06493089,0.00014247,2]
[400331760,1767381045872,-1000.0,0.00014247,2]
[400331762,1767381045881,-1000.0,0.00014247,2]
[400331764,1767381045890,-511.79039823,0.00014247,2]
[400331766,1767381045898,-1000.0,0.00014247,2]
[400331767,1767381045908,-1004.33287174,0.00014247,2]
[400331770,1767381045917,-1000.0,0.00014247,2]
[400331780,1767381046002,-322.3139372,0.00014247,2]
[400332787,1767382231725,-1016.72874072,0.00010487,2]
[400332789,1767382231737,-1754.68411156,0.00010487,2]
[400332791,1767382231748,-2228.58714772,0.00010487,2]
[400332793,1767382231758,-244.84617607,0.00010647,2]
[400332795,1767382231768,-928.25,0.0001081,2]
[400332797,1767382231777,-1856.5,0.00011325,2]
[400332799,1767382231786,-162.67198079,0.0001166,2]
[400332801,1767382231795,-300.0,0.00011723,2]
[400332803,1767382231804,-10000.0,0.00011724,2]
[400332805,1767382231813,-2784.75,0.0001184,2]
[400332807,1767382231822,-500.0,0.00011897,2]
[400332808,1767382231831,-500.0,0.00011897,2]
[400332810,1767382231840,-500.0,0.00011897,2]
[400332812,1767382231849,-547.17790331,0.00011897,2]
[400332814,1767382231858,-500.0,0.00011897,2]
[400332816,1767382231868,-500.0,0.00011897,2]
[400332818,1767382231877,-500.0,0.00011897,2]
[400332820,1767382231886,-500.0,0.00011897,2]
[400332822,1767382231895,-155.0973393,0.00011897,2]
[400332824,1767382231904,-500.0,0.00011897,2]
[400332826,1767382231913,-500.0,0.00011897,2]
[400332827,1767382231923,-500.0,0.00011897,2]
[400332829,1767382231932,-348.51692369,0.00011897,2]
[400332831,1767382231941,-150137.85161883,0.00011898,2]
[400332834,1767382231959,-7007.93634597,0.00011898,2]
[400332836,1767382231970,-2000.0,0.00011898,2]
[400332897,1767382237974,-890.79079948,0.00011798,2]
[400332898,1767382238078,-4058.0843473,0.00011798,2]
[400332899,1767382238088,-3998.10641621,0.00011898,2]
[400332909,1767382240044,-254.01130894,0.00011898,2]
[400332910,1767382240159,-90004.3299,0.00011898,2]
[400332911,1767382240171,-1437.29746005,0.00011898,2]
[400333050,1767382244638,-5996.30708455,0.00011898,2]
[400333051,1767382244696,-25284.12228892,0.00011898,2]
[400333115,1767382245883,-3122.06570156,0.00011898,2]
[400333117,1767382245894,-802.84844993,0.00011898,2]
[400333122,1767382245938,-17277.46457518,0.00011898,2]
[400333137,1767382250904,66.86880424,0.0001,2]
[400333138,1767382250929,1000.0,0.0001,2]
[400333139,1767382260898,31003.42119576,9.5e-05,2]
[400333210,1767382410785,171.8308572,5.561e-05,2]
[400333484,1767383432194,-857.36,0.00010815,2]
[400333486,1767383432204,-247.24662111,0.00010894,2]
[400333488,1767383432213,-1714.73,0.0001133,2]
[400333490,1767383432223,-300.0,0.00011679,2]
[400333492,1767383432232,-300.0,0.00011679,2]
[400333494,1767383432241,-300.0,0.00011679,2]
[400333495,1767383432251,-860.49489308,0.0001168,2]
[400333498,1767383432262,-1326.0,0.0001168,2]
[400333500,1767383432273,-997.14197923,0.0001168,2]
[400333502,1767383432284,-47710.22286304,0.0001168,2]
[400333504,1767383432296,-46418.42233268,0.0001168,2]
[400333618,1767383440097,-500.0,0.00011679,2]
[400333619,1767383440108,-258.56813751,0.00011679,2]
[400333620,1767383440117,-370.41523987,0.00011679,2]
[400333621,1767383440214,-129.58476013,0.00011679,2]
[400333622,1767383440224,-219.66462493,0.00011679,2]
[400333933,1767383444228,-280.33537507,0.00011679,2]
[400333934,1767383444238,-203.95638012,0.0001168,2]
[400333935,1767383444254,-3921.46108,0.0001168,2]
[400333936,1767383444265,-1706.58466388,0.0001168,2]
[400333998,1767383444906,-4285.0657763,0.0001168,2]
[400334125,1767383446066,-12872.30624705,0.0001168,2]
[400334143,1767383446220,-337.2,0.0001168,2]
[400334485,1767384632480,-835.13,0.00010806,2]
[400334487,1767384632490,-263.6319694,0.00010845,2]
[400334489,1767384632499,-398.1278091,0.00011216,2]
[400334491,1767384632510,-586.56220887,0.00011216,2]
[400334493,1767384632525,-643.77140468,0.00011216,2]
[400334495,1767384632536,-41.79857735,0.00011216,2]
[400334497,1767384632546,-340.37242397,0.00011473,2]
[400334499,1767384632557,-24.18712289,0.00011473,2]
[400334501,1767384632567,-416.22623036,0.00011487,2]
[400334503,1767384632579,-216.25418521,0.00011487,2]
[400334505,1767384632588,-186.76367604,0.00011573,2]
[400334507,1767384632597,-500.0,0.00011573,2]
[400334509,1767384632606,-500.0,0.00011573,2]
[400334511,1767384632615,-500.0,0.00011573,2]
[400334513,1767384632624,-500.0,0.00011573,2]
[400334515,1767384632633,-496.8562154,0.00011573,2]
[400334517,1767384632643,-360.67188438,0.00011573,2]
[400334519,1767384632652,-500.0,0.00011573,2]
[400334521,1767384632661,-500.0,0.00011573,2]
[400334522,1767384632670,-300.0,0.00011573,2]
[400334524,1767384632680,-300.0,0.00011573,2]
[400334526,1767384632689,-300.0,0.00011573,2]
[400334528,1767384632698,-300.0,0.00011573,2]
[400334539,1767384632802,-1200.0,0.00011573,2]
[400334541,1767384632811,-4503.88277881,0.00011574,2]
[400334543,1767384632823,-4006.60908387,0.00011574,2]
[400334780,1767384638210,-500.0,0.00011573,2]
[400334782,1767384638220,-500.0,0.00011573,2]
[400334783,1767384638229,-500.0,0.00011573,2]
[400334785,1767384638238,-500.0,0.00011573,2]
[400334786,1767384638248,-500.0,0.00011573,2]
[400334787,1767384638257,-5116.30943066,0.00011574,2]
[400334919,1767384640262,-12412.80655445,0.00011574,2]
[400334921,1767384640274,-23960.39215221,0.00011574,2]
[400334923,1767384640283,-24888.12889037,0.00011575,2]
[400334928,1767384640318,-272.71,0.00011575,2]
[400334930,1767384640331,-715.67570898,0.00011575,2]
[400334932,1767384640341,-263.47373267,0.00011575,2]
[400334936,1767384640369,-836.32266439,0.00011575,2]
[400335078,1767384644883,-377.95093046,0.00011575,2]
[400335079,1767384644902,-2051.67024572,0.00011575,2]
[400335090,1767384646148,-43867.62934289,0.00011575,2]
[400335091,1767384646202,-363.0,0.00011575,2]
[400335330,1767385630232,157.71161895,0.00023808,120]
[400335422,1767385780954,2773.29164414,0.00012,10]
[400335496,1767385832245,-278.43295342,0.00010751,2]
[400335498,1767385832257,-923.46704658,0.00010751,2]
[400335500,1767385832266,-154.62211484,0.00010784,2]
[400335505,1767385832299,-103.73721518,0.00010784,2]
[400335507,1767385832308,-313.427819,0.0001089,2]
[400335554,1767385838482,-186.572181,0.0001089,2]
[400335555,1767385838493,-500.0,0.0001089,2]
[400335556,1767385838502,-151.26299191,0.00010999,2]
[400335557,1767385838514,-148.73700809,0.00010999,2]
[400335558,1767385838524,-300.0,0.00010999,2]
[400335559,1767385838533,-5505.99448699,0.00011,2]
[400335562,1767385840610,-1290.17425765,0.00011,2]
[400335563,1767385840622,-263.98648147,0.00011,2]
[400335564,1767385840667,-359.99275684,0.00011,2]
[400335565,1767385840714,-299.2891204,0.00011,2]
[400335566,1767385840726,-2228.17850353,0.00011,2]
[400335619,1767385841496,3755.0,0.0002307,120]
[400335733,1767385842755,3755.0,0.00024223,120]
[400335862,1767385844021,3755.0,0.00025435,120]
[400335968,1767385845320,3755.0,0.00026706,120]
[400335976,1767385845733,-52.38439312,0.00011,2]
[400335977,1767385845744,-500.0,0.0001109,2]
[400335978,1767385845756,-226.9496748,0.0001109,2]
[400335979,1767385845769,-478.95360475,0.0001109,2]
[400335999,1767385846626,3755.0,0.00028042,120]
[400336001,1767385846830,-3825.72403329,0.0001109,2]
[400336002,1767385846885,-25573.48125584,0.0001109,2]
[400336033,1767386111703,1127.0,0.00025991,120]
[400336034,1767386113006,1127.0,0.0002729,120]
[400336035,1767386114333,1127.0,0.00028655,120]
[400336042,1767386410750,676.0,0.00026274,120]
[400336043,1767386412192,676.0,0.00027587,120]
[400336044,1767386455085,1786.32109944,0.00012,10]
[400336078,1767386709883,406.0,0.00026342,120]
[400336081,1767386711156,406.0,0.00027659,120]
[400336101,1767387012692,243.0,0.00026382,120]
[400336102,1767387014043,243.0,0.00027701,120]
[400336158,1767387032482,-250.0,9.912e-05,2]
[400336160,1767387032491,-278.76499525,0.00010187,2]
[400336162,1767387032501,-580.7743479,0.00010241,2]
[400336164,1767387032511,-1466.61,0.00010596,2]
[400336166,1767387032520,-300.0,0.00010982,2]
[400336168,1767387032530,-188.92667703,0.00010983,2]
[400336170,1767387032539,-261.64,0.00010983,2]
[400336172,1767387032549,-50000.0,0.00010983,2]
[400336174,1767387032558,-63835.66420557,0.00010985,2]
[400336176,1767387032567,-505.98433248,0.00011,2]
[400336177,1767387032577,-2933.21,0.000111,2]
[400336179,1767387032587,-376.5396692,0.000111,2]
[400336181,1767387032596,-376.5396692,0.000111,2]
[400336183,1767387032605,-376.5396692,0.000111,2]
[400336185,1767387032614,-376.5396692,0.000112,2]
[400336187,1767387032623,-376.5396692,0.000112,2]
[400336189,1767387032632,-374.7710669,0.000112,2]
[400336191,1767387032641,-376.5396692,0.000112,2]
[400336193,1767387032650,-376.5396692,0.000112,2]
[400336195,1767387032660,-376.5396692,0.000112,2]
[400336197,1767387032670,-376.5396692,0.000112,2]
[400336199,1767387032680,-376.5396692,0.000112,2]
[400336201,1767387032689,-376.5396692,0.000112,2]
[400336203,1767387032698,-261.64,0.00011257,2]
[400336205,1767387032707,-376.5396692,0.000113,2]
[400336207,1767387032716,-376.5396692,0.000113,2]
[400336220,1767387032834,-376.5396692,0.000113,2]
[400336222,1767387032843,-376.5396692,0.000113,2]
[400336224,1767387032853,-376.5396692,0.000113,2]
[400336226,1767387032863,-500.0,0.00011312,2]
[400336228,1767387032872,-64127.0509809,0.00011444,2]
[400336230,1767387032881,-261.64,0.00011531,2]
[400336232,1767387032890,-1906.08024694,0.00011587,2]
[400336234,1767387032899,-4399.82,0.00011605,2]
[400336236,1767387032909,-192.80024878,0.00011679,2]
[400336238,1767387032918,-505.98433244,0.0001168,2]
[400336240,1767387032928,-70000.0,0.0001178,2]
[400336242,1767387032937,-261.64,0.00011805,2]
[400336244,1767387032947,-228.07,0.00011807,2]
[400336246,1767387032957,-220.34314147,0.00011816,2]
[400336248,1767387032970,-500.0,0.00011907,2]
[400336250,1767387032979,-344.28615854,0.00011934,2]
[400336252,1767387032987,-1041.66666667,0.00011946,2]
[400336254,1767387032997,-165.016249,0.00011973,2]
[400336256,1767387033007,-495.27629623,0.00012051,2]
[400336258,1767387033017,-420.0,0.00012068,2]
[400336260,1767387033026,-261.67145387,0.00012079,2]
[400336262,1767387033037,-5866.43,0.00012109,2]
[400336264,1767387033046,-328.94269439,0.00012187,2]
[400336266,1767387033055,-402.98,0.00012329,2]
[400336268,1767387033064,-335.82,0.00012329,2]
[400336270,1767387033074,-279.85,0.00012329,2]
[400336272,1767387033083,-233.21,0.00012329,2]
[400336274,1767387033092,-194.34,0.00012329,2]
[400336276,1767387033103,-161.95,0.00012329,2]
[400336278,1767387033112,-809.78,0.00012329,2]
[400336280,1767387033123,-505.98433244,0.00012361,2]
[400336282,1767387033133,-956.232,0.00012399,2]
[400336284,1767387033142,-239.942,0.00012399,2]
[400336286,1767387033152,-416.0,0.00012399,2]
[400336288,1767387033161,-500.0,0.00012502,2]
[400336290,1767387033171,-151.0,0.000126,2]
[400336292,1767387033179,-500.0,0.00012603,2]
[400336294,1767387033188,-7333.03,0.00012614,2]
[400336296,1767387033197,-247.55890936,0.00012644,2]
[400336298,1767387033206,-88164.02340751,0.000127,2]
[400336300,1767387033215,-151.0,0.000128,2]
[400336302,1767387033225,-4446.01961364,0.0001287,2]
[400336304,1767387033235,-425.4913246,0.00012893,3]
[400336306,1767387033244,-389.07619037,0.00012893,3]
[400336308,1767387033253,-11218.00514116,0.000129,2]
[400336310,1767387033263,-1000.0,0.00013013,2]
[400336312,1767387033272,-1000.0,0.00013013,2]
[400336314,1767387033281,-1000.0,0.00013013,2]
[400336316,1767387033291,-1000.0,0.00013013,2]
[400336318,1767387033300,-1000.0,0.00013013,2]
[400336320,1767387033309,-574.12855637,0.00013013,2]
[400336322,1767387033319,-1000.0,0.00013013,2]
[400336324,1767387033329,-209.40437684,0.00013013,2]
[400336326,1767387033338,-250.0,0.00013013,2]
[400336328,1767387033347,-753.63980958,0.00013013,2]
[400336330,1767387033356,-250.0,0.00013013,2]
[400336332,1767387033365,-602.92443512,0.00013013,2]
[400336335,1767387033377,-572.88932627,0.00013013,2]
[400336422,1767387038493,-500.0,0.00010982,2]
[400336423,1767387038503,-500.0,0.00010982,2]
[400336424,1767387038513,-454.61073366,0.00010982,2]
[400336425,1767387038523,-500.0,0.00010982,2]
[400336426,1767387038533,-500.0,0.00010982,2]
[400336427,1767387038542,-500.0,0.00010982,2]
[400336428,1767387038552,-74.02542544,0.00010982,2]
[400336429,1767387038563,-425.97457456,0.00010982,2]
[400336430,1767387038572,-500.0,0.00010982,2]
[400336431,1767387038581,-500.0,0.00010982,2]
[400336432,1767387038591,-500.0,0.00010982,2]
[400336433,1767387038600,-500.0,0.00010982,2]
[400336434,1767387038610,-500.0,0.00010982,2]
[400336435,1767387038619,-500.0,0.00010982,2]
[400336436,1767387038629,-500.0,0.00010982,2]
[400336437,1767387038638,-500.0,0.00010982,2]
[400336438,1767387038647,-500.0,0.00010982,2]
[400336439,1767387038667,-500.0,0.00010982,2]
[400336440,1767387038677,-500.0,0.00010982,2]
[400336441,1767387038687,-500.0,0.00010982,2]
[400336442,1767387038697,-500.0,0.00010982,2]
[400336443,1767387038707,-500.0,0.00010982,2]
[400336444,1767387038717,-500.0,0.00010982,2]
[400336445,1767387038726,-500.0,0.00010982,2]
[400336446,1767387038736,-500.0,0.00010982,2]
[400336447,1767387038745,-500.0,0.00010982,2]
[400336448,1767387038755,-386.99802118,0.00010982,2]
[400336449,1767387038765,-338.41391307,0.00010982,2]
[400336450,1767387038775,-500.0,0.00010982,2]
[400336451,1767387038785,-500.0,0.00010982,2]
[400336452,1767387038795,-500.0,0.00010982,2]
[400336453,1767387038805,-500.0,0.00010982,2]
[400336454,1767387038814,-500.0,0.00010982,2]
[400336455,1767387038823,-500.0,0.00010982,2]
[400336456,1767387038833,-500.0,0.00010982,2]
[400336457,1767387038842,-500.0,0.00010982,2]
[400336458,1767387038852,-500.0,0.00010982,2]
[400336459,1767387038861,-500.0,0.00010982,2]
[400336460,1767387038871,-457.79327732,0.00010982,2]
[400336461,1767387038880,-500.0,0.00010982,2]
[400336462,1767387038890,-500.0,0.00010982,2]
[400336463,1767387038900,-500.0,0.00010982,2]
[400336464,1767387038910,-500.0,0.00010982,2]
[400336465,1767387038920,-500.0,0.00010982,2]
[400336466,1767387038929,-500.0,0.00010982,2]
[400336467,1767387038939,-500.0,0.00010982,2]
[400336468,1767387038949,-500.0,0.00010982,2]
[400336469,1767387038960,-500.0,0.00010982,2]
[400336470,1767387038974,-500.0,0.00010982,2]
[400336471,1767387038984,-500.0,0.00010982,2]
[400336472,1767387038994,-500.0,0.00010982,2]
[400336473,1767387039004,-500.0,0.00010982,2]
[400336474,1767387039015,-500.0,0.00010982,2]
[400336475,1767387039025,-500.0,0.00010982,2]
[400336476,1767387039036,-500.0,0.00010982,2]
[400336477,1767387039047,-500.0,0.00010982,2]
[400336478,1767387039056,-500.0,0.00010982,2]
[400336479,1767387039066,-500.0,0.00010982,2]
[400336480,1767387039077,-500.0,0.00010982,2]
[400336481,1767387039087,-500.0,0.00012329,2]
[400336482,1767387039096,-500.0,0.00012329,2]
[400336483,1767387039106,-500.0,0.00012329,2]
[400336484,1767387039116,-500.0,0.00012329,2]
[400336485,1767387039126,-500.0,0.00012329,2]
[400336486,1767387039136,-500.0,0.00012329,2]
[400336487,1767387039146,-500.0,0.00012329,2]
[400336488,1767387039156,-500.0,0.00012329,2]
[400336489,1767387039299,-500.0,0.00012329,2]
[400336490,1767387039310,-500.0,0.00012329,2]
[400336491,1767387039320,-500.0,0.00012329,2]
[400336492,1767387039329,-500.0,0.00012329,2]
[400336493,1767387039339,-547.8208701,0.00012329,2]
[400336494,1767387039348,-500.0,0.00012329,2]
[400336495,1767387039357,-500.0,0.00012329,2]
[400336496,1767387039366,-500.0,0.00012329,2]
[400336497,1767387039375,-500.0,0.00012329,2]
[400336498,1767387039385,-500.0,0.00012329,2]
[400336499,1767387039394,-500.0,0.00012329,2]
[400336500,1767387039404,-500.0,0.00012329,2]
[400336501,1767387039413,-500.0,0.00012329,2]
[400336502,1767387039424,-500.0,0.00012329,2]
[400336503,1767387039434,-1597.7541438,0.00013013,2]
[400336504,1767387039443,-151.0,0.00013013,2]
[400336505,1767387039452,-151.0,0.00013013,2]
[400336506,1767387039462,-151.0,0.00013013,2]
[400336507,1767387039471,-151.0,0.00013013,2]
[400336508,1767387039480,-250.0,0.00013013,2]
[400336509,1767387039489,-250.0,0.00013013,2]
[400336510,1767387039499,-250.0,0.00013013,2]
[400336511,1767387039508,-250.0,0.00013013,2]
[400336512,1767387039518,-250.0,0.00013013,2]
[400336513,1767387039527,-250.0,0.00013013,2]
[400336514,1767387039535,-250.0,0.00013013,2]
[400336515,1767387039545,-250.0,0.00013013,2]
[400336516,1767387039555,-505.98433244,0.00013041,2]
[400336517,1767387039564,-151.0,0.000131,2]
[400336518,1767387039572,-8799.64,0.00013119,2]
[400336519,1767387039585,-631.52091535,0.00013127,2]
[400336520,1767387039594,-176.686,0.000132,2]
[400336521,1767387039603,-587.0,0.00013262,2]
[400336522,1767387039612,-500.0,0.00013273,2]
[400336523,1767387039621,-500.0,0.00013273,2]
[400336524,1767387039629,-500.0,0.00013273,2]
[400336525,1767387039639,-500.0,0.00013273,2]
[400336526,1767387039649,-500.0,0.00013273,2]
[400336527,1767387039658,-500.0,0.00013273,2]
[400336528,1767387039667,-500.0,0.00013273,2]
[400336529,1767387039676,-450.73050318,0.00013273,2]
[400336530,1767387039685,-500.0,0.00013273,2]
[400336531,1767387039694,-500.0,0.00013273,2]
[400336532,1767387039702,-500.0,0.00013273,2]
[400336533,1767387039711,-197.18483867,0.00013273,2]
[400336534,1767387039720,-500.0,0.00013273,2]
[400336535,1767387039729,-500.0,0.00013273,2]
[400336536,1767387039738,-500.0,0.00013273,2]
[400336537,1767387039747,-500.0,0.00013273,2]
[400336538,1767387039756,-500.0,0.00013273,2]
[400336539,1767387039765,-500.0,0.00013273,2]
[400336540,1767387039774,-500.0,0.00013273,2]
[400336541,1767387039785,-151.0,0.000133,2]
[400336542,1767387039795,-151.0,0.000135,2]
[400336543,1767387039805,-151.0,0.000135,2]
[400336544,1767387039816,-595.37131296,0.00013561,2]
[400336545,1767387039825,-217.15233878,0.00013561,2]
[400336546,1767387039835,-2876.18991768,0.00013561,2]
[400336547,1767387039845,-7829.15424052,0.00013568,2]
[400336548,1767387039859,-3197.18973189,0.00013568,2]
[400336549,1767387039870,-3282.33518279,0.00013568,2]
[400336550,1767387039878,-10266.25,0.00013623,2]
[400336551,1767387039887,-300.0,0.00013673,2]
[400336552,1767387039897,-600.0,0.00013677,2]
[400336553,1767387039905,-323.41723311,0.00013698,2]
[400336554,1767387039915,-500.0,0.00013698,2]
[400336555,1767387039924,-500.0,0.00013698,2]
[400336556,1767387039933,-500.0,0.00013698,2]
[400336557,1767387039942,-500.0,0.00013698,2]
[400336558,1767387039952,-500.0,0.00013698,2]
[400336559,1767387039960,-500.0,0.00013698,2]
[400336560,1767387039974,-500.0,0.00013698,2]
[400336561,1767387039983,-500.0,0.00013698,2]
[400336562,1767387039992,-500.0,0.00013698,2]
[400336563,1767387040002,-500.0,0.00013698,2]
[400336564,1767387040013,-500.0,0.00013698,2]
[400336565,1767387040022,-500.0,0.00013698,2]
[400336566,1767387040031,-500.0,0.00013698,2]
[400336568,1767387040040,-500.0,0.00013698,2]
[400336569,1767387040049,-500.0,0.00013698,2]
[400336570,1767387040059,-500.0,0.00013698,2]
[400336571,1767387040068,-500.0,0.00013698,2]
[400336572,1767387040077,-500.0,0.00013698,2]
[400336573,1767387040085,-500.0,0.00013698,2]
[400336574,1767387040095,-500.0,0.00013698,2]
[400336575,1767387040105,-238.76023168,0.00013698,2]
[400336576,1767387040114,-500.0,0.00013698,2]
[400336577,1767387040123,-500.0,0.00013698,2]
[400336578,1767387040133,-566.64364994,0.00013698,2]
[400336579,1767387040142,-10000.0,0.00013698,2]
[400336580,1767387040151,-1000.0,0.00013699,2]
[400336581,1767387040160,-2980.432648,0.00013699,2]
[400336582,1767387040169,-9442.16105448,0.00013699,2]
[400336583,1767387040180,-2336.37,0.00013699,2]
[400336759,1767387046693,-1610.19785751,0.00010884,2]
[400336760,1767387046705,-16872.82287747,0.00010884,2]
[400336808,1767387406763,-539.0,0.00010605,2]
[400336809,1767387419009,-359.0,0.00010605,2]
[400336945,1767388232652,-629.30076944,0.00010283,2]
[400336946,1767388232663,-4353.35475425,0.00010283,2]
[400336947,1767388232672,-266.61084145,0.00010466,2]
[400336948,1767388232681,-150.0,0.00010605,2]
[400336949,1767388232690,-228.1234632,0.00010606,2]
[400336950,1767388232699,-150.0,0.00010606,2]
[400336951,1767388232708,-150.0,0.00010609,2]
[400336952,1767388232717,-150.0,0.00010609,2]
[400336953,1767388232726,-150.0,0.00010609,2]
[400336954,1767388232735,-300.0,0.00010745,2]
[400336955,1767388232744,-150.0,0.00010746,2]
[400336956,1767388232753,-150.0,0.00010746,2]
[400336957,1767388232762,-2542.71094109,0.00010746,2]
[400336958,1767388232773,-917.30566123,0.00010746,2]
[400336959,1767388232784,-709.4838733,0.00010746,2]